fUST/lending_fUST_20260107
["ID","MTS","AMOUNT","RATE_DAILY","PERIOD"]
[400651835,1767767447969,-209.524359,0.00030412,31]
[400651836,1767767447981,-209.524359,0.00030412,31]
[400651837,1767767447992,-151.0,0.00030412,31]
[400651838,1767767448004,-209.524359,0.00030412,31]
[400651839,1767767448015,-151.0,0.00030412,31]
[400651840,1767767448026,-241.004676,0.00030412,31]
[400651841,1767767448036,-241.004676,0.00030412,31]
[400651842,1767767448047,-241.004676,0.00030412,31]
[400651843,1767767448057,-241.004676,0.00030412,31]
[400651844,1767767448066,-1016.281206,0.00030412,31]
[400651845,1767767448077,-1016.281206,0.00030412,31]
[400651846,1767767448087,-1016.281206,0.00030412,31]
[400651847,1767767448098,-1016.281206,0.00030412,31]
[400651848,1767767448108,-530.111159,0.00030412,31]
[400651849,1767767448118,-530.111159,0.00030412,31]
[400651850,1767767448128,-210.572265,0.00030412,31]
[400651851,1767767448138,-530.111159,0.00030412,31]
[400651852,1767767448148,-530.111159,0.00030412,31]
[400651853,1767767448157,-210.572265,0.00030412,31]
[400651854,1767767448168,-210.572265,0.00030412,31]
[400651855,1767767448178,-210.572265,0.00030412,31]
[400651856,1767767448189,-151.0,0.00030412,31]
[400651857,1767767448198,-151.0,0.00030412,31]
[400651858,1767767448209,-218.702509,0.00030412,31]
[400651859,1767767448219,-218.702509,0.00030412,31]
[400651860,1767767448229,-218.702509,0.00030412,31]
[400651861,1767767448239,-151.0,0.00030412,31]
[400651862,1767767448251,-218.702509,0.00030412,31]
[400651863,1767767448263,-184.812283,0.00030412,31]
[400651864,1767767448274,-184.812283,0.00030412,31]
[400651865,1767767448285,-184.812283,0.00030412,31]
[400651866,1767767448297,-184.812283,0.00030412,31]
[400651867,1767767448307,-151.0,0.00030412,31]
[400651868,1767767448318,-151.0,0.00030412,31]
[400651869,1767767448330,-151.0,0.00030412,31]
[400651870,1767767448341,-151.0,0.00030412,31]
[400651871,1767767448351,-634.815792,0.00030412,28]
[400651872,1767767448361,-634.815792,0.00030412,28]
[400651873,1767767448371,-634.815792,0.00030412,28]
[400651874,1767767448383,-634.815792,0.00030412,28]
[400651875,1767767448393,-151.0,0.00030412,31]
[400651876,1767767448404,-151.0,0.00030412,31]
[400651877,1767767448414,-215.064076,0.00030412,31]
[400651878,1767767448426,-215.064076,0.00030412,31]
[400651879,1767767448436,-215.064076,0.00030412,31]
[400651880,1767767448446,-151.0,0.00030412,7]
[400651881,1767767448456,-215.064076,0.00030412,31]
[400651882,1767767448466,-151.0,0.00030412,31]
[400651883,1767767448476,-151.0,0.00030412,31]
[400651884,1767767448486,-290.765005,0.00030412,31]
[400651885,1767767448496,-151.0,0.00030412,31]
[400651886,1767767448506,-290.765005,0.00030412,31]
[400651887,1767767448516,-151.0,0.00030412,31]
[400651888,1767767448527,-290.765005,0.00030412,31]
[400651889,1767767448539,-290.765005,0.00030412,31]
[400651890,1767767448550,-151.0,0.00030412,31]
[400651891,1767767448561,-151.0,0.00030412,31]
[400651892,1767767448571,-151.0,0.00030412,31]
[400651893,1767767448581,-151.0,0.00030412,31]
[400651894,1767767448593,-205.742012,0.00030412,31]
[400651895,1767767448604,-205.742012,0.00030412,31]
[400651896,1767767448615,-151.0,0.00030412,31]
[400651897,1767767448626,-205.742012,0.00030412,31]
[400651898,1767767448636,-205.742012,0.00030412,31]
[400651899,1767767448647,-207.616806,0.00030412,31]
[400651900,1767767448658,-151.0,0.00030412,31]
[400651901,1767767448669,-151.0,0.00030412,31]
[400651902,1767767448679,-151.0,0.00030412,31]
[400651903,1767767448690,-2200.0,0.00030596,7]
[400651904,1767767448701,-2200.51,0.000306,14]
[400651905,1767767448711,-500.0,0.00030685,15]
[400651906,1767767448722,-1299.19626571,0.00030685,5]
[400651907,1767767448733,-750.0,0.00030685,5]
[400651908,1767767448745,-750.65512167,0.00030685,5]
[400651909,1767767448756,-567.40074024,0.00030696,2]
[400651910,1767767448767,-2000.0,0.00030734,7]
[400651911,1767767448777,-500.0,0.0003092,7]
[400651912,1767767448789,-587.58501506,0.00030946,7]
[400651913,1767767448799,-402.32,0.00030958,30]
[400651914,1767767448809,-190.2708929,0.00031,120]
[400651915,1767767448819,-191.73798973,0.00031,120]
[400651916,1767767448831,-191.51603111,0.00031,120]
[400651917,1767767448842,-176.11325056,0.00031,120]
[400651918,1767767448853,-174.41697135,0.00031,120]
[400651919,1767767448863,-163.98489072,0.00031,120]
[400651920,1767767448874,-186.0317041,0.00031,120]
[400651921,1767767448884,-164.04291735,0.00031,120]
[400651922,1767767448895,-206.91086702,0.00031,120]
[400651923,1767767448906,-194.89245098,0.00031,120]
[400651924,1767767448916,-1019.0,0.00031,7]
[400651925,1767767448927,-2200.0,0.00031046,7]
[400651926,1767767448941,-500.0,0.00031061,7]
[400651927,1767767448951,-346.1,0.00031079,4]
[400651928,1767767448962,-174.0,0.00031123,44]
[400651929,1767767448972,-157.018213,0.00031139,10]
[400651930,1767767448983,-1981.16465421,0.0003125,10]
[400651931,1767767448994,-1000.0,0.00031255,30]
[400651932,1767767449004,-1000.0,0.00031255,30]
[400651933,1767767449015,-1000.0,0.00031255,30]
[400651934,1767767449026,-5000.0,0.00031288,2]
[400651935,1767767449038,-3445.4755013,0.00031412,32]
[400651936,1767767449048,-402.32,0.00031506,31]
[400651937,1767767449059,-999.0,0.00031506,8]
[400651938,1767767449072,-2200.0,0.00031522,7]
[400651939,1767767449084,-2000.0,0.00031577,7]
[400651940,1767767449095,-500.0,0.00031596,7]
[400651941,1767767449106,-500.0,0.00031649,7]
[400651942,1767767449116,-500.0,0.00031785,7]
[400651943,1767767449127,-6312.35556935,0.00031798,2]
[400651944,1767767449137,-2200.0,0.00031889,7]
[400651945,1767767449148,-258.12,0.000319,7]
[400651946,1767767449158,-243.07,0.000319,7]
[400651947,1767767449168,-190.2708929,0.000319,120]
[400651948,1767767449194,-191.73798973,0.000319,120]
[400651949,1767767449205,-191.51603111,0.000319,120]
[400651950,1767767449217,-174.41697135,0.000319,120]
[400651951,1767767449231,-186.0317041,0.000319,120]
[400651952,1767767449259,-164.04291735,0.000319,120]
[400651953,1767767449275,-206.91086702,0.000319,120]
[400651954,1767767449303,-18908.25294421,0.000319,2]
[400651955,1767767449315,-200.66450954,0.00032,2]
[400651956,1767767449335,-1019.0,0.00032,7]
[400651957,1767767449349,-402.32,0.00032054,32]
[400651958,1767767449359,-8045.68317556,0.00032131,2]
[400651959,1767767449370,-2800.0,0.00032159,7]
[400651960,1767767449382,-500.0,0.0003216,2]
[400651961,1767767449393,-1908.17,0.000323,7]
[400651962,1767767449406,-2000.0,0.00032419,7]
[400651963,1767767449418,-188.67967802,0.00032437,9]
[400651964,1767767449450,-402.32,0.00032602,33]
[400651965,1767767449471,-346.1,0.00032673,5]
[400651966,1767767449487,-606.38247048,0.00032696,2]
[400651967,1767767449501,-3770.39547372,0.00032851,34]
[400651968,1767767449534,-999.0,0.00032876,120]
[400651969,1767767449544,-18142.58,0.00032877,10]
[400651970,1767767449555,-31673.16,0.00032877,10]
[400651971,1767767449571,-26394.3,0.00032877,10]
[400651972,1767767449582,-25963.54,0.000329,14]
[400651973,1767767449593,-191.73798973,0.000329,120]
[400651974,1767767449604,-5000.0,0.00032913,2]
[400651975,1767767449615,-1449.662,0.00033,30]
[400651976,1767767449626,-1449.66,0.00033,30]
[400651977,1767767449645,-1019.0,0.00033,7]
[400651978,1767767449655,-402.32,0.0003315,34]
[400651979,1767767449677,-161.86525391,0.000332,117]
[400651980,1767767449687,-2000.0,0.00033261,7]
[400651981,1767767449696,-402.32,0.00033698,35]
[400651982,1767767449705,-210.0,0.00033699,5]
[400651983,1767767449714,-2200.51,0.000339,30]
[400651984,1767767449724,-167.78,0.000339,7]
[400651985,1767767449735,-191.73798973,0.000339,120]
[400651986,1767767449761,-1019.0,0.00034,7]
[400651987,1767767449773,-151.0,0.0003407,31]
[400651988,1767767449799,-151.0,0.0003407,31]
[400651989,1767767449812,-151.0,0.0003407,31]
[400651990,1767767449829,-151.0,0.0003407,31]
[400651991,1767767449842,-151.0,0.0003407,31]
[400651992,1767767449853,-151.0,0.0003407,31]
[400651993,1767767449866,-151.0,0.0003407,31]
[400651994,1767767449879,-151.0,0.0003407,31]
[400651995,1767767449890,-151.0,0.0003407,31]
[400651996,1767767449902,-609.666208,0.0003407,31]
[400651997,1767767449914,-609.666208,0.0003407,31]
[400651998,1767767449925,-609.666208,0.0003407,31]
[400651999,1767767449936,-609.666208,0.0003407,31]
[400652000,1767767449947,-38000.0,0.0003407,10]
[400652001,1767767449967,-38000.0,0.00034079,10]
[400652002,1767767449982,-193.081788,0.00034079,31]
[400652003,1767767450013,-151.0,0.00034079,31]
[400652004,1767767450028,-151.0,0.00034079,31]
[400652005,1767767450045,-151.0,0.00034079,31]
[400652006,1767767450059,-151.0,0.00034079,31]
[400652007,1767767450080,-151.0,0.00034079,31]
[400652008,1767767450096,-151.0,0.00034079,31]
[400652009,1767767450108,-206.889733,0.00034079,31]
[400652010,1767767450122,-151.0,0.00034079,31]
[400652011,1767767450135,-151.0,0.00034079,31]
[400652012,1767767450146,-1626.684503,0.00034079,31]
[400652013,1767767450159,-151.0,0.00034079,31]
[400652014,1767767450175,-151.0,0.00034079,31]
[400652015,1767767450228,-1626.684503,0.00034079,31]
[400652016,1767767450244,-1626.684503,0.00034079,31]
[400652017,1767767450270,-1626.684503,0.00034079,31]
[400652018,1767767450285,-151.0,0.00034079,31]
[400652019,1767767450304,-151.0,0.00034079,31]
[400652020,1767767450327,-151.0,0.00034079,31]
[400652021,1767767450350,-151.0,0.00034079,31]
[400652022,1767767450368,-151.0,0.00034079,31]
[400652023,1767767450380,-194.927323,0.00034079,31]
[400652024,1767767450399,-151.0,0.00034079,31]
[400652025,1767767450424,-194.927323,0.00034079,31]
[400652026,1767767450441,-194.927323,0.00034079,31]
[400652027,1767767450464,-194.927323,0.00034079,31]
[400652028,1767767450476,-151.0,0.00034079,31]
[400652029,1767767450489,-151.0,0.00034079,31]
[400652030,1767767450505,-2000.0,0.00034104,7]
[400652031,1767767450520,-858.0,0.00034233,30]
[400652032,1767767450532,-652.0,0.00034233,30]
[400652033,1767767450542,-848.5,0.00034233,30]
[400652034,1767767450553,-402.32,0.00034246,36]
[400652035,1767767450563,-999.0,0.00034246,120]
[400652036,1767767450668,-346.1,0.00034267,6]
[400652037,1767767450691,-4103.27787288,0.00034291,36]
[400652038,1767767450703,-1365.0,0.00034323,2]
[400652039,1767767450717,-628.0,0.00034323,2]
[400652040,1767767450731,-2145.0,0.00034323,2]
[400652041,1767767450742,-714.0,0.00034323,2]
[400652042,1767767450758,-195.223,0.00034323,2]
[400652043,1767767450772,-417.0,0.00034323,2]
[400652044,1767767450785,-417.0,0.00034323,2]
[400652045,1767767450798,-1000.0,0.0003438,30]
[400652046,1767767450816,-1000.0,0.0003438,30]
[400652047,1767767450827,-258.12,0.000345,7]
[400652048,1767767450840,-243.07,0.000345,7]
[400652049,1767767450852,-151.0,0.0003451,31]
[400652050,1767767450863,-300.0,0.0003451,31]
[400652051,1767767450874,-300.0,0.0003451,31]
[400652052,1767767450886,-300.0,0.0003451,31]
[400652053,1767767450897,-300.0,0.0003451,31]
[400652054,1767767450911,-270.0,0.00034521,5]
[400652055,1767767450922,-276.176938,0.00034538,31]
[400652056,1767767450932,-200.0,0.00034538,31]
[400652057,1767767450943,-200.0,0.00034538,31]
[400652058,1767767450954,-200.0,0.00034538,31]
[400652059,1767767450967,-214.456704,0.00034538,31]
[400652060,1767767450978,-200.0,0.00034538,31]
[400652061,1767767450989,-214.456704,0.00034538,31]
[400652062,1767767451001,-214.456704,0.00034538,31]
[400652063,1767767451012,-214.456704,0.00034538,31]
[400652064,1767767451022,-151.0,0.00034538,31]
[400652065,1767767451033,-151.0,0.00034538,31]
[400652066,1767767451045,-151.0,0.00034538,31]
[400652067,1767767451055,-181.252366,0.00034538,31]
[400652068,1767767451066,-151.0,0.00034538,31]
[400652069,1767767451076,-5000.0,0.00034538,3]
[400652070,1767767451087,-645.36420073,0.00034696,120]
[400652071,1767767451099,-340.34,0.00034736,60]
[400652072,1767767451111,-8045.68317556,0.00034779,2]
[400652073,1767767451122,-402.32,0.00034794,37]
[400652074,1767767451132,-340.34,0.00034836,60]
[400652075,1767767451143,-1908.17,0.000349,7]
[400652076,1767767451154,-340.34,0.00034936,60]
[400652077,1767767451165,-2000.0,0.00034946,7]
[400652078,1767767451176,-25963.54,0.00035,14]
[400652079,1767767451186,-742.05992263,0.00035,7]
[400652080,1767767451197,-390.92977,0.00035,31]
[400652081,1767767451207,-390.92977,0.00035,31]
[400652082,1767767451218,-5071.31924155,0.00035,2]
[400652083,1767767451229,-390.92977,0.00035,31]
[400652084,1767767451241,-390.92977,0.00035,31]
[400652085,1767767451256,-151.0,0.00035,2]
[400652086,1767767451267,-673.621691,0.00035,31]
[400652087,1767767451278,-1664.343388,0.00035,31]
[400652088,1767767451291,-673.621691,0.00035,31]
[400652089,1767767451306,-673.621691,0.00035,31]
[400652090,1767767451317,-673.621691,0.00035,31]
[400652091,1767767451329,-1664.343388,0.00035,31]
[400652092,1767767451340,-151.0,0.00035,31]
[400652093,1767767451350,-151.0,0.00035,31]
[400652094,1767767451361,-1664.343388,0.00035,31]
[400652095,1767767451373,-151.0,0.00035,31]
[400652096,1767767451384,-1664.343388,0.00035,31]
[400652097,1767767451396,-151.0,0.00035,31]
[400652098,1767767451408,-186.329815,0.00035,31]
[400652099,1767767451419,-186.329815,0.00035,31]
[400652100,1767767451430,-186.329815,0.00035,31]
[400652101,1767767451441,-186.329815,0.00035,31]
[400652102,1767767451453,-215.570059,0.00035,8]
[400652103,1767767451465,-206.665209,0.00035,31]
[400652104,1767767451477,-215.570059,0.00035,8]
[400652105,1767767451489,-206.665209,0.00035,31]
[400652106,1767767451501,-215.570059,0.00035,8]
[400652107,1767767451513,-206.665209,0.00035,31]
[400652108,1767767451524,-215.570059,0.00035,8]
[400652109,1767767451536,-206.665209,0.00035,31]
[400652110,1767767451547,-151.0,0.00035,31]
[400652111,1767767451558,-21736.68381722,0.00035,5]
[400652112,1767767451676,-539.724,0.00035,5]
[400652113,1767767451690,-2447.396,0.00035,5]
[400652114,1767767451702,-39432.4397013,0.00035,5]
[400652115,1767767451766,157.83,8.156e-05,2]
[400652116,1767767451811,197.29,8.495e-05,2]
[400652117,1767767451891,236.75,8.835e-05,2]
[400652118,1767767451940,276.2,9.175e-05,2]
[400652119,1767767451980,315.66,9.515e-05,2]
[400652120,1767767452025,355.12,9.855e-05,2]
[400652121,1767767452066,394.58,0.00010195,2]
[400652122,1767767452133,-151.0,0.00027,7]
[400652123,1767767452143,-1565.29,0.00032877,10]
[400652124,1767767511248,169.22,9.558e-05,2]
[400652125,1767767511652,193.39,9.912e-05,2]
[400652126,1767767512063,217.57,0.00010266,2]
[400652127,1767767512494,241.74,0.0001062,2]
[400652128,1767767523862,155.0,8.873e-05,2]
[400652129,1767767601963,152.0,0.000301,120]
[400652130,1767767650562,5000.0,0.00012263,2]
[400652131,1767767658704,4023.09,0.00012263,2]
[400652132,1767767658726,976.91,0.00012263,2]
[400652133,1767767674501,5000.0,0.00012263,2]
[400652134,1767767698007,4023.1,0.00012263,2]
[400652135,1767767698031,976.89,0.00012263,2]
[400652136,1767767720495,5000.0,0.00012263,2]
[400652137,1767767728312,2043.40175538,0.00012263,2]
[400652138,1767767737024,1566.01175538,0.00012263,2]
[400652139,1767767752416,413.70648924,0.00012263,2]
[400652140,1767767752441,1439.19175538,0.00012263,2]
[400652141,1767767756617,1039.96939557,0.0003,120]
[400652142,1767767767997,1910.17,0.00012263,2]
[400652143,1767767776441,5000.0,0.00012263,2]
[400652144,1767767791968,1650.64824462,0.00012263,2]
[400652145,1767767791995,1439.18175538,0.00012263,2]
[400652152,1767767841153,-300.0,0.00012327,2]
[400652153,1767767841182,-500.0,0.00012328,2]
[400652154,1767767841212,-500.0,0.00012328,2]
[400652155,1767767841242,-500.0,0.00012328,2]
[400652156,1767767841276,-500.0,0.00012328,2]
[400652157,1767767841308,-500.0,0.00012328,2]
[400652158,1767767841338,-500.0,0.00012328,2]
[400652159,1767767841368,-500.0,0.00012328,2]
[400652160,1767767841403,-500.0,0.00012328,2]
[400652161,1767767841436,-500.0,0.00012328,2]
[400652162,1767767841469,-199.72018999,0.00012328,2]
[400652163,1767767852233,165.02,9.313e-05,2]
[400652165,1767767879889,189.66,8.864e-05,2]
[400652166,1767767880152,9805.13720764,0.0003,120]
[400652167,1767767880199,189.64,8.864e-05,2]
[400652168,1767767911971,7058.16183729,0.0003,120]
[400652169,1767767918667,183.91,8.019e-05,2]
[400652170,1767767919099,220.69,8.34e-05,2]
[400652171,1767767919521,257.47,8.661e-05,2]
[400652172,1767767920023,294.26,8.981e-05,2]
[400652173,1767767920295,331.04,9.302e-05,2]
[400652174,1767767920718,367.82,9.623e-05,2]
[400652175,1767767924830,-300.0,0.00012327,2]
[400652176,1767767932689,-167.95,0.00012328,2]
[400652177,1767767973878,12564.74808815,0.0003,120]
[400652178,1767767992455,2330.24333388,0.0003,120]
[400652179,1767768021212,1488.3780018,0.00011533,2]
[400652181,1767768125486,-300.0,0.00012328,2]
[400652182,1767768125517,-245.0,0.00012328,2]
[400652183,1767768125546,-594.0,0.00012328,2]
[400652184,1767768125576,-300.0,0.00012328,2]
[400652185,1767768160433,-217.91490918,0.00012328,2]
[400652186,1767768160466,-1437.28,0.00012329,2]
[400652187,1767768160499,-1354.4,0.00012329,2]
[400652188,1767768160531,-1128.67,0.00012329,2]
[400652189,1767768160561,-782.93018164,0.00012329,2]
[400652190,1767768209124,-500.0,0.00012328,2]
[400652191,1767768209162,-500.0,0.00012328,2]
[400652192,1767768209194,-500.0,0.00012328,2]
[400652193,1767768209223,-476.7682238,0.00012328,2]
[400652194,1767768209252,-500.0,0.00012328,2]
[400652195,1767768209283,-500.0,0.00012328,2]
[400652196,1767768209314,-500.0,0.00012328,2]
[400652197,1767768209348,-500.0,0.00012328,2]
[400652198,1767768209377,-500.0,0.00012328,2]
[400652199,1767768209407,-386.21075817,0.00012328,2]
[400652200,1767768260692,160.84,8.822e-05,2]
[400652201,1767768261617,214.46,9.206e-05,2]
[400652202,1767768262046,268.07,9.59e-05,2]
[400652203,1767768262452,321.69,9.973e-05,2]
[400652204,1767768262850,375.3,0.00010357,2]
[400652205,1767768263254,428.92,0.0001074,2]
[400652206,1767768277689,-310.80257742,0.00011124,2]
[400652207,1767768279295,-171.72742258,0.00011124,2]
[400652208,1767768279466,-68.71827676,0.00011508,2]
[400652209,1767768281471,-306.14216045,0.00011508,2]
[400652210,1767768308616,-244.99,0.00011393,2]
[400652211,1767768310724,-244.80662036,0.00011393,2]
[400652212,1767768312768,-288.74286163,0.00011393,2]
[400652214,1767768341997,163.12,9.8e-05,2]
[400652215,1767768342420,186.42,0.00010162,2]
[400652216,1767768342846,209.72,0.00010525,2]
[400652217,1767768352615,-198.67561924,0.00010888,2]
[400652218,1767768442595,-249.18485632,0.00011279,2]
[400652219,1767768444159,-284.41096269,0.00011279,2]
[400652220,1767768444183,-18.80098803,0.00011393,2]
[400652221,1767768451801,-60.04996719,0.00011393,2]
[400652222,1767768451832,-241.92599873,0.00011451,2]
[400652223,1767768451863,-300.0,0.00012326,2]
[400652224,1767768451893,-500.0,0.00012327,2]
[400652225,1767768451923,-500.0,0.00012327,2]
[400652226,1767768451956,-539.13654861,0.00012327,2]
[400652227,1767768451987,-500.0,0.00012327,2]
[400652228,1767768452016,-410.37179793,0.00012327,2]
[400652229,1767768452047,-500.0,0.00012327,2]
[400652230,1767768452081,-539.13654861,0.00012327,2]
[400652231,1767768452112,-500.0,0.00012327,2]
[400652232,1767768452146,-279.63172925,0.00012327,2]
[400652233,1767768472628,-226.17522684,0.00011419,2]
[400652234,1767768474775,-304.0,0.00011419,2]
[400652235,1767768476312,-228.08421647,0.00011419,2]
[400652236,1767768491924,-526.36246496,0.00011419,2]
[400652237,1767768491955,-166.4598051,0.00011534,2]
[400652238,1767768491984,-300.0,0.00012326,2]
[400652239,1767768492016,-259.50481936,0.00012327,2]
[400652240,1767768492047,-500.0,0.00012327,2]
[400652241,1767768492079,-539.13654861,0.00012327,2]
[400652242,1767768492108,-468.01427318,0.00012327,2]
[400652243,1767768492140,-500.0,0.00012327,2]
[400652244,1767768492170,-500.0,0.00012327,2]
[400652245,1767768492201,-539.13654861,0.00012327,2]
[400652246,1767768492230,-500.0,0.00012327,2]
[400652247,1767768492568,-539.13654861,0.00012327,2]
[400652248,1767768492598,-487.00892918,0.00012327,2]
[400652249,1767768492630,-500.0,0.00012327,2]
[400652250,1767768492664,-500.0,0.00012327,2]
[400652251,1767768492695,-500.0,0.00012327,2]
[400652252,1767768492728,-500.0,0.00012327,2]
[400652253,1767768492759,-539.13654861,0.00012327,2]
[400652254,1767768492788,-498.70680864,0.00012327,2]
[400652255,1767768492819,-500.0,0.00012327,2]
[400652256,1767768492848,-372.03232992,0.00012327,2]
[400652257,1767768493079,-127.96767008,0.00012327,2]
[400652258,1767768493110,-521.48154243,0.00012327,2]
[400652259,1767768493141,-500.0,0.00012327,2]
[400652260,1767768493172,-500.0,0.00012327,2]
[400652261,1767768493200,-500.0,0.00012327,2]
[400652262,1767768493230,-500.0,0.00012327,2]
[400652263,1767768493413,-500.0,0.00012327,2]
[400652264,1767768493446,-500.0,0.00012327,2]
[400652265,1767768493479,-500.0,0.00012327,2]
[400652266,1767768493510,-500.0,0.00012327,2]
[400652267,1767768493542,-201.11157498,0.00012327,2]
[400652268,1767768493654,-298.88842502,0.00012327,2]
[400652269,1767768493684,-500.0,0.00012327,2]
[400652270,1767768493715,-500.0,0.00012327,2]
[400652271,1767768493745,-396.45636272,0.00012327,2]
[400652272,1767768493776,-500.0,0.00012327,2]
[400652273,1767768493806,-500.0,0.00012327,2]
[400652274,1767768493837,-500.0,0.00012327,2]
[400652275,1767768493868,-500.0,0.00012327,2]
[400652276,1767768493898,-500.0,0.00012327,2]
[400652277,1767768493929,-500.0,0.00012327,2]
[400652278,1767768493959,-109.32042452,0.00012327,2]
[400652279,1767768494198,-390.67957548,0.00012327,2]
[400652280,1767768494233,-500.0,0.00012327,2]
[400652281,1767768494264,-500.0,0.00012327,2]
[400652282,1767768494297,-500.0,0.00012327,2]
[400652283,1767768494330,-500.0,0.00012327,2]
[400652284,1767768494361,-500.0,0.00012327,2]
[400652285,1767768494396,-500.0,0.00012327,2]
[400652286,1767768494427,-500.0,0.00012327,2]
[400652287,1767768494458,-500.0,0.00012327,2]
[400652288,1767768494488,-500.0,0.00012327,2]
[400652289,1767768494666,-500.0,0.00012327,2]
[400652290,1767768494706,-500.0,0.00012327,2]
[400652291,1767768494747,-500.0,0.00012327,2]
[400652292,1767768494784,-500.0,0.00012327,2]
[400652293,1767768494820,-500.0,0.00012327,2]
[400652294,1767768494858,-500.0,0.00012327,2]
[400652295,1767768494897,-500.0,0.00012327,2]
[400652296,1767768494937,-500.0,0.00012327,2]
[400652297,1767768494975,-500.0,0.00012327,2]
[400652298,1767768495014,-500.0,0.00012327,2]
[400652299,1767768528867,-5000.0,0.00012079,2]
[400652300,1767768547454,164.65,9.096e-05,2]
[400652301,1767768547865,192.09,9.446e-05,2]
[400652302,1767768548298,219.54,9.796e-05,2]
[400652303,1767768548714,246.98,0.00010146,2]
[400652304,1767768549145,274.42,0.00010496,2]
[400652318,1767768560391,-2245.79820783,0.00011838,2]
[400652319,1767768560422,-811.73749512,0.00011958,2]
[400652320,1767768560763,-5000.0,0.00012079,2]
[400652321,1767768560803,-503.9265234,0.00012201,2]
[400652322,1767768560834,-300.0,0.00012326,2]
[400652323,1767768560863,-500.0,0.00012327,2]
[400652324,1767768560893,-500.0,0.00012327,2]
[400652325,1767768560923,-500.0,0.00012327,2]
[400652326,1767768560951,-500.0,0.00012327,2]
[400652327,1767768560982,-500.0,0.00012327,2]
[400652328,1767768561016,-500.0,0.00012327,2]
[400652329,1767768561046,-500.0,0.00012327,2]
[400652330,1767768561078,-500.0,0.00012327,2]
[400652331,1767768579089,-5000.0,0.00012203,2]
[400652332,1767768600914,-342.12924589,0.00012081,2]
[400652333,1767768600948,-4315.75150822,0.00012203,2]
[400652334,1767768601097,-684.24849178,0.00012203,2]
[400652335,1767768601131,-185.7891139,0.00012214,2]
[400652336,1767768601166,-2353.44599393,0.00012326,2]
[400652337,1767768601198,-500.0,0.00012326,2]
[400652338,1767768601233,-500.0,0.00012326,2]
[400652339,1767768601264,-500.0,0.00012326,2]
[400652341,1767768615695,232.6,7.707e-05,2]
[400652342,1767768616100,348.89,8.058e-05,2]
[400652343,1767768616537,465.19,8.408e-05,2]
[400652344,1767768616979,581.49,8.758e-05,2]
[400652345,1767768617399,697.79,9.109e-05,2]
[400652346,1767768617850,814.08,9.459e-05,2]
[400652347,1767768618267,930.38,9.809e-05,2]
[400652348,1767768618724,404.91,0.0001016,2]
[400652349,1767768618749,641.77,0.0001016,2]
[400652350,1767768622681,-267.68341874,0.0001051,2]
[400652351,1767768624784,-220.82704361,0.0001051,2]
[400652352,1767768627393,-300.0,0.0001051,2]
[400652381,1767768634262,-374.46953765,0.0001051,2]
[400652382,1767768634294,-4251.0709247,0.00012202,2]
[400652385,1767768637632,-748.9290753,0.00012202,2]
[400652386,1767768637644,-300.0,0.00012325,2]
[400652387,1767768637654,-300.0,0.00012325,2]